[Event "Titled Tuesday Blitz March 28 Late 2023"]
[White "Urazayev, Arystanbek"]
[Black "Grave, Jacob Templen"]
[WhiteFideId "13709810"]
[BlackFideId "1542656"]
[WhiteElo "2479"]
[BlackElo "2179"]
[Result "1-0"]
[Round "04"]
[TimeControl "180+2"]
[Date "2023.03.28"]
[WhiteClock "0:01:38"]
[BlackClock "0:00:18"]

1. e4 {[%clk 0:02:57]}  c6 {[%clk 0:02:59]} 2. d4 {[%clk 0:02:54]}  d5 {[%clk 0:02:57]} 3. exd5 {[%clk 0:02:55]}  cxd5 {[%clk 0:02:57]} 4. Bd3 {[%clk 0:02:55]}  Nc6 {[%clk 0:02:58]} 5. c3 {[%clk 0:02:56]}  Nf6 {[%clk 0:02:56]} 6. h3 {[%clk 0:02:56]}  g6 {[%clk 0:02:54]} 7. Nf3 {[%clk 0:02:55]}  Bf5 {[%clk 0:02:54]} 8. Be2 {[%clk 0:02:55]}  Bg7 {[%clk 0:02:51]} 9. O-O {[%clk 0:02:56]}  h6 {[%clk 0:02:51]} 10. a4 {[%clk 0:02:56]}  g5 {[%clk 0:02:50]} 11. Ne5 {[%clk 0:02:55]}  Ne4 {[%clk 0:02:38]} 12. Nd3 {[%clk 0:02:53]}  O-O {[%clk 0:02:35]} 13. Na3 {[%clk 0:02:47]}  Bg6 {[%clk 0:02:22]} 14. Bh5 {[%clk 0:02:44]}  Bh7 {[%clk 0:02:20]} 15. Nc2 {[%clk 0:02:26]}  e5 {[%clk 0:02:14]} 16. dxe5 {[%clk 0:02:22]}  Nxe5 {[%clk 0:02:14]} 17. Nxe5 {[%clk 0:02:23]}  Bxe5 {[%clk 0:02:15]} 18. Nd4 {[%clk 0:02:21]}  Rc8 {[%clk 0:02:10]} 19. f4 {[%clk 0:02:18]}  Bxd4+ {[%clk 0:02:02]} 20. cxd4 {[%clk 0:02:14]}  Ng3 {[%clk 0:01:56]} 21. Re1 {[%clk 0:02:13]}  Qf6 {[%clk 0:01:43]} 22. fxg5 {[%clk 0:02:04]}  hxg5 {[%clk 0:01:41]} 23. Re5 {[%clk 0:02:00]}  Ne4 {[%clk 0:01:07]} 24. Be3 {[%clk 0:01:59]}  Rfe8 {[%clk 0:01:02]} 25. Qf1 {[%clk 0:01:49]}  Qxf1+ {[%clk 0:00:58]} 26. Rxf1 {[%clk 0:01:49]}  Rxe5 {[%clk 0:00:49]} 27. Bxf7+ {[%clk 0:01:49]}  Kg7 {[%clk 0:00:46]} 28. dxe5 {[%clk 0:01:50]}  Ng3 {[%clk 0:00:43]} 29. Rf3 {[%clk 0:01:40]}  Nf5 {[%clk 0:00:34]} 30. Be6 {[%clk 0:01:37]}  Rf8 {[%clk 0:00:26]} 31. Bxg5 {[%clk 0:01:34]}  Nd4 {[%clk 0:00:20]} 32. Bh6+ {[%clk 0:01:34]}  Kxh6 {[%clk 0:00:19]} 33. Rxf8 {[%clk 0:01:35]}  Nxe6 {[%clk 0:00:18]} 34. Rf6+ {[%clk 0:01:35]}  Kg5 {[%clk 0:00:18]} 35. Rxe6 {[%clk 0:01:36]}  Kf5 {[%clk 0:00:19]} 36. Re7 {[%clk 0:01:36]}  Bg8 {[%clk 0:00:19]} 37. Rxb7 {[%clk 0:01:35]}  Kxe5 {[%clk 0:00:20]} 38. Rxa7 {[%clk 0:01:35]}  d4 {[%clk 0:00:20]} 39. Kf2 {[%clk 0:01:36]}  Bc4 {[%clk 0:00:19]} 40. Ke1 {[%clk 0:01:36]}  Ke4 {[%clk 0:00:19]} 41. Kd2 {[%clk 0:01:36]}  Bd5 {[%clk 0:00:19]} 42. a5 {[%clk 0:01:36]}  Kf4 {[%clk 0:00:19]} 43. a6 {[%clk 0:01:37]}  Bxg2 {[%clk 0:00:19]} 44. Rg7 {[%clk 0:01:37]}  Bxh3 {[%clk 0:00:18]} 45. a7 {[%clk 0:01:38]} 1-0


[Site "https://www.chess.com"]

[Event "Titled Tuesday Blitz March 28 Late 2023"]
[White "Andreikin, Dmitry"]
[Black "Ozer, Omer Faruk"]
[WhiteFideId "4158814"]
[BlackFideId "6354564"]
[WhiteElo "2736"]
[BlackElo "2260"]
[Result "1/2-1/2"]
[Round "04"]
[TimeControl "180+2"]
[Date "2023.03.28"]
[WhiteClock "0:00:03"]
[BlackClock "0:00:04"]

1. e4 {[%clk 0:03:00]}  c5 {[%clk 0:02:57]} 2. Nc3 {[%clk 0:03:00]}  Nc6 {[%clk 0:02:57]} 3. Nge2 {[%clk 0:03:00]}  e6 {[%clk 0:02:53]} 4. d4 {[%clk 0:02:57]}  cxd4 {[%clk 0:02:54]} 5. Nxd4 {[%clk 0:02:58]}  Nf6 {[%clk 0:02:54]} 6. a3 {[%clk 0:02:55]}  Qc7 {[%clk 0:02:49]} 7. Be3 {[%clk 0:02:51]}  a6 {[%clk 0:02:48]} 8. f4 {[%clk 0:02:51]}  d6 {[%clk 0:02:46]} 9. Qf3 {[%clk 0:02:51]}  Nxd4 {[%clk 0:02:27]} 10. Bxd4 {[%clk 0:02:51]}  b5 {[%clk 0:02:27]} 11. O-O-O {[%clk 0:02:46]}  Bb7 {[%clk 0:02:27]} 12. g4 {[%clk 0:02:44]}  Nd7 {[%clk 0:02:23]} 13. Kb1 {[%clk 0:02:38]}  Rc8 {[%clk 0:02:06]} 14. h4 {[%clk 0:02:36]}  Nc5 {[%clk 0:02:02]} 15. Rh2 {[%clk 0:02:35]}  Bc6 {[%clk 0:01:39]} 16. g5 {[%clk 0:02:30]}  Qb7 {[%clk 0:01:39]} 17. Re2 {[%clk 0:02:26]}  b4 {[%clk 0:01:36]} 18. axb4 {[%clk 0:02:25]}  Qxb4 {[%clk 0:01:36]} 19. h5 {[%clk 0:02:16]}  Rb8 {[%clk 0:01:22]} 20. Nd5 {[%clk 0:02:17]}  Qb7 {[%clk 0:00:59]} 21. Bg2 {[%clk 0:01:50]}  Bb5 {[%clk 0:00:46]} 22. Ree1 {[%clk 0:01:41]}  exd5 {[%clk 0:00:45]} 23. exd5+ {[%clk 0:01:37]}  Kd8 {[%clk 0:00:45]} 24. h6 {[%clk 0:01:34]}  Rg8 {[%clk 0:00:43]} 25. Qc3 {[%clk 0:01:22]}  gxh6 {[%clk 0:00:40]} 26. Qa5+ {[%clk 0:01:20]}  Qb6 {[%clk 0:00:37]} 27. Qc3 {[%clk 0:01:17]}  Bd7 {[%clk 0:00:33]} 28. Be4 {[%clk 0:01:11]}  hxg5 {[%clk 0:00:16]} 29. Bxh7 {[%clk 0:01:11]}  Rg6 {[%clk 0:00:16]} 30. Bxg6 {[%clk 0:01:08]}  fxg6 {[%clk 0:00:17]} 31. fxg5 {[%clk 0:01:07]}  Bf5 {[%clk 0:00:13]} 32. Rh1 {[%clk 0:01:02]}  Qb3 {[%clk 0:00:10]} 33. Qxb3 {[%clk 0:00:49]}  Nxb3 {[%clk 0:00:10]} 34. Bf6+ {[%clk 0:00:50]}  Ke8 {[%clk 0:00:09]} 35. Rh7 {[%clk 0:00:45]}  Nc5 {[%clk 0:00:02]} 36. Re1+ {[%clk 0:00:45]}  Ne4 {[%clk 0:00:02]} 37. Kc1 {[%clk 0:00:42]}  Rc8 {[%clk 0:00:01]} 38. c3 {[%clk 0:00:41]}  Rc5 {[%clk 0:00:01]} 39. Rh4 {[%clk 0:00:38]}  Rxd5 {[%clk 0:00:01]} 40. Rhxe4+ {[%clk 0:00:38]}  Bxe4 {[%clk 0:00:02]} 41. Rxe4+ {[%clk 0:00:39]}  Kf7 {[%clk 0:00:03]} 42. Kc2 {[%clk 0:00:33]}  a5 {[%clk 0:00:03]} 43. Kb3 {[%clk 0:00:32]}  Rb5+ {[%clk 0:00:03]} 44. Kc2 {[%clk 0:00:32]}  d5 {[%clk 0:00:04]} 45. Rh4 {[%clk 0:00:32]}  Ke6 {[%clk 0:00:03]} 46. Rh8 {[%clk 0:00:29]}  Bd6 {[%clk 0:00:04]} 47. Rd8 {[%clk 0:00:26]}  Bf4 {[%clk 0:00:03]} 48. b3 {[%clk 0:00:22]}  Kf5 {[%clk 0:00:04]} 49. Rf8 {[%clk 0:00:17]}  Bxg5 {[%clk 0:00:04]} 50. Bd4+ {[%clk 0:00:18]}  Kg4 {[%clk 0:00:04]} 51. Rg8 {[%clk 0:00:17]}  Kf5 {[%clk 0:00:04]} 52. Rf8+ {[%clk 0:00:17]}  Kg4 {[%clk 0:00:04]} 53. Rf1 {[%clk 0:00:16]}  Bf4 {[%clk 0:00:04]} 54. Rg1+ {[%clk 0:00:16]}  Kf5 {[%clk 0:00:05]} 55. Ra1 {[%clk 0:00:14]}  g5 {[%clk 0:00:05]} 56. c4 {[%clk 0:00:14]}  dxc4 {[%clk 0:00:05]} 57. bxc4 {[%clk 0:00:15]}  Rb4 {[%clk 0:00:06]} 58. Kd3 {[%clk 0:00:13]}  Rb3+ {[%clk 0:00:06]} 59. Kc2 {[%clk 0:00:12]}  Rf3 {[%clk 0:00:06]} 60. Rxa5+ {[%clk 0:00:11]}  Ke4 {[%clk 0:00:06]} 61. Ba7 {[%clk 0:00:11]}  g4 {[%clk 0:00:06]} 62. c5 {[%clk 0:00:11]}  g3 {[%clk 0:00:07]} 63. c6 {[%clk 0:00:11]}  g2 {[%clk 0:00:07]} 64. Ra1 {[%clk 0:00:07]}  Kd5 {[%clk 0:00:06]} 65. Rg1 {[%clk 0:00:07]}  Kxc6 {[%clk 0:00:05]} 66. Rxg2 {[%clk 0:00:07]}  Bd6 {[%clk 0:00:05]} 67. Bd4 {[%clk 0:00:06]}  Rf4 {[%clk 0:00:06]} 68. Bc3 {[%clk 0:00:06]}  Rf3 {[%clk 0:00:06]} 69. Rg6 {[%clk 0:00:07]}  Kd5 {[%clk 0:00:06]} 70. Rg5+ {[%clk 0:00:06]}  Kc4 {[%clk 0:00:06]} 71. Rg4+ {[%clk 0:00:07]}  Kd5 {[%clk 0:00:06]} 72. Rd4+ {[%clk 0:00:07]}  Kc6 {[%clk 0:00:06]} 73. Rd1 {[%clk 0:00:08]}  Bc5 {[%clk 0:00:06]} 74. Kb3 {[%clk 0:00:07]}  Kb5 {[%clk 0:00:06]} 75. Rd5 {[%clk 0:00:07]}  Kc6 {[%clk 0:00:06]} 76. Rd1 {[%clk 0:00:06]}  Kb5 {[%clk 0:00:06]} 77. Rd5 {[%clk 0:00:07]}  Kc6 {[%clk 0:00:07]} 78. Rd8 {[%clk 0:00:07]}  Kb5 {[%clk 0:00:06]} 79. Rb8+ {[%clk 0:00:07]}  Kc6 {[%clk 0:00:06]} 80. Kc4 {[%clk 0:00:07]}  Rf4+ {[%clk 0:00:06]} 81. Kd3 {[%clk 0:00:08]}  Kd5 {[%clk 0:00:06]} 82. Rd8+ {[%clk 0:00:07]}  Kc6 {[%clk 0:00:06]} 83. Be5 {[%clk 0:00:08]}  Rf3+ {[%clk 0:00:06]} 84. Kc4 {[%clk 0:00:08]}  Bb6 {[%clk 0:00:05]} 85. Rd6+ {[%clk 0:00:07]}  Kb7 {[%clk 0:00:05]} 86. Bc3 {[%clk 0:00:07]}  Rf5 {[%clk 0:00:04]} 87. Rg6 {[%clk 0:00:06]}  Rc5+ {[%clk 0:00:04]} 88. Kb4 {[%clk 0:00:05]}  Rf5 {[%clk 0:00:04]} 89. Kb3 {[%clk 0:00:05]}  Ka6 {[%clk 0:00:04]} 90. Bb4 {[%clk 0:00:05]}  Kb5 {[%clk 0:00:04]} 91. Bc3 {[%clk 0:00:05]}  Rf3 {[%clk 0:00:04]} 92. Kc2 {[%clk 0:00:05]}  Bc5 {[%clk 0:00:04]} 93. Rg4 {[%clk 0:00:05]}  Rf2+ {[%clk 0:00:04]} 94. Kd3 {[%clk 0:00:05]}  Rf3+ {[%clk 0:00:04]} 95. Kd2 {[%clk 0:00:05]}  Rf2+ {[%clk 0:00:05]} 96. Ke1 {[%clk 0:00:05]}  Rc2 {[%clk 0:00:05]} 97. Bd2 {[%clk 0:00:05]}  Rc4 {[%clk 0:00:05]} 98. Rg8 {[%clk 0:00:05]}  Bb4 {[%clk 0:00:05]} 99. Rb8+ {[%clk 0:00:04]}  Ka4 {[%clk 0:00:06]} 100. Ke2 {[%clk 0:00:03]}  Bxd2 {[%clk 0:00:05]} 101. Kd3 {[%clk 0:00:03]}  Rb4 {[%clk 0:00:05]} 102. Rxb4+ {[%clk 0:00:03]}  Bxb4 {[%clk 0:00:04]} 1/2-1/2


[Site "https://www.chess.com"]

[Event "Titled Tuesday Blitz March 28 Late 2023"]
[White "Sai Krishna G V"]
[Black "Alekseenko, Kirill"]
[WhiteFideId "5028280"]
[BlackFideId "4135539"]
[WhiteElo "2359"]
[BlackElo "2683"]
[Result "0-1"]
[Round "04"]
[TimeControl "180+2"]
[Date "2023.03.28"]
[WhiteClock "0:00:04"]
[BlackClock "0:00:18"]

1. e4 {[%clk 0:03:00]}  c5 {[%clk 0:02:59]} 2. Nf3 {[%clk 0:03:00]}  Nc6 {[%clk 0:03:00]} 3. Nc3 {[%clk 0:02:59]}  d6 {[%clk 0:02:59]} 4. d4 {[%clk 0:02:58]}  cxd4 {[%clk 0:03:00]} 5. Nxd4 {[%clk 0:02:58]}  Nf6 {[%clk 0:03:01]} 6. Bg5 {[%clk 0:02:59]}  e6 {[%clk 0:03:01]} 7. Qd2 {[%clk 0:02:59]}  a6 {[%clk 0:03:02]} 8. O-O-O {[%clk 0:02:59]}  Bd7 {[%clk 0:03:03]} 9. f3 {[%clk 0:02:58]}  Be7 {[%clk 0:03:02]} 10. g4 {[%clk 0:02:52]}  Rc8 {[%clk 0:03:02]} 11. Be3 {[%clk 0:02:48]}  b5 {[%clk 0:02:59]} 12. Nxc6 {[%clk 0:02:36]}  Bxc6 {[%clk 0:03:00]} 13. g5 {[%clk 0:02:30]}  Nd7 {[%clk 0:03:00]} 14. h4 {[%clk 0:02:22]}  Ne5 {[%clk 0:02:57]} 15. f4 {[%clk 0:02:16]}  b4 {[%clk 0:02:55]} 16. Nd5 {[%clk 0:01:40]}  Nf3 {[%clk 0:02:52]} 17. Qf2 {[%clk 0:01:34]}  exd5 {[%clk 0:02:50]} 18. exd5 {[%clk 0:01:35]}  Bd7 {[%clk 0:01:38]} 19. Qxf3 {[%clk 0:01:19]}  h5 {[%clk 0:01:35]} 20. f5 {[%clk 0:01:12]}  g6 {[%clk 0:01:25]} 21. f6 {[%clk 0:01:06]}  Bg4 {[%clk 0:01:17]} 22. Qf4 {[%clk 0:01:01]}  Qa5 {[%clk 0:01:07]} 23. Bh3 {[%clk 0:00:49]}  b3 {[%clk 0:00:56]} 24. axb3 {[%clk 0:00:35]}  Qa1+ {[%clk 0:00:51]} 25. Kd2 {[%clk 0:00:36]}  Qxb2 {[%clk 0:00:52]} 26. Qa4+ {[%clk 0:00:30]}  Kf8 {[%clk 0:00:49]} 27. fxe7+ {[%clk 0:00:30]}  Kxe7 {[%clk 0:00:49]} 28. Qe4+ {[%clk 0:00:23]}  Kd7 {[%clk 0:00:45]} 29. Bxg4+ {[%clk 0:00:19]}  hxg4 {[%clk 0:00:46]} 30. Bd4 {[%clk 0:00:18]}  Rxc2+ {[%clk 0:00:42]} 31. Qxc2 {[%clk 0:00:19]}  Qxd4+ {[%clk 0:00:43]} 32. Kc1 {[%clk 0:00:18]}  Qa1+ {[%clk 0:00:43]} 33. Kd2 {[%clk 0:00:19]}  Qd4+ {[%clk 0:00:44]} 34. Kc1 {[%clk 0:00:16]}  Qa1+ {[%clk 0:00:43]} 35. Kd2 {[%clk 0:00:16]}  Qa5+ {[%clk 0:00:41]} 36. Qc3 {[%clk 0:00:16]}  Qa2+ {[%clk 0:00:40]} 37. Kd3 {[%clk 0:00:15]}  Rc8 {[%clk 0:00:40]} 38. Qxc8+ {[%clk 0:00:04]}  Kxc8 {[%clk 0:00:40]} 39. Rhf1 {[%clk 0:00:04]}  Qxb3+ {[%clk 0:00:40]} 40. Kd4 {[%clk 0:00:05]}  Kd8 {[%clk 0:00:24]} 41. Rb1 {[%clk 0:00:04]}  Qa4+ {[%clk 0:00:24]} 42. Ke3 {[%clk 0:00:05]}  Qa3+ {[%clk 0:00:22]} 43. Kf4 {[%clk 0:00:05]}  g3 {[%clk 0:00:20]} 44. Kg4 {[%clk 0:00:04]}  g2 {[%clk 0:00:20]} 45. Rg1 {[%clk 0:00:04]}  Qe3 {[%clk 0:00:19]} 46. h5 {[%clk 0:00:03]}  gxh5+ {[%clk 0:00:18]} 47. Kxh5 {[%clk 0:00:04]}  Qh3# {[%clk 0:00:18]} 0-1


[Site "https://www.chess.com"]

[Event "Titled Tuesday Blitz March 28 Late 2023"]
[White "Sargsyan, Shant"]
[Black "Feng, Eric"]
[WhiteFideId "13306766"]
[BlackFideId "30952590"]
[WhiteElo "2628"]
[BlackElo "1785"]
[Result "1-0"]
[Round "04"]
[TimeControl "180+2"]
[Date "2023.03.28"]
[WhiteClock "0:00:08"]
[BlackClock "0:00:16"]

1. g3 {[%clk 0:02:59]}  Nf6 {[%clk 0:02:52]} 2. c4 {[%clk 0:02:58]}  e6 {[%clk 0:02:48]} 3. Bg2 {[%clk 0:02:58]}  d5 {[%clk 0:02:49]} 4. Nf3 {[%clk 0:02:59]}  Be7 {[%clk 0:02:49]} 5. O-O {[%clk 0:02:59]}  O-O {[%clk 0:02:50]} 6. b3 {[%clk 0:03:00]}  Nbd7 {[%clk 0:02:49]} 7. Bb2 {[%clk 0:03:00]}  c6 {[%clk 0:02:49]} 8. d4 {[%clk 0:03:00]}  b6 {[%clk 0:02:50]} 9. Nc3 {[%clk 0:03:00]}  Bb7 {[%clk 0:02:50]} 10. Qd3 {[%clk 0:02:57]}  c5 {[%clk 0:02:40]} 11. cxd5 {[%clk 0:02:57]}  exd5 {[%clk 0:02:39]} 12. Rfd1 {[%clk 0:02:55]}  Rc8 {[%clk 0:02:39]} 13. Rac1 {[%clk 0:02:55]}  Qc7 {[%clk 0:02:39]} 14. dxc5 {[%clk 0:02:54]}  Nxc5 {[%clk 0:02:40]} 15. Qb1 {[%clk 0:02:53]}  Rfd8 {[%clk 0:02:40]} 16. Nb5 {[%clk 0:02:53]}  Qb8 {[%clk 0:02:40]} 17. Be5 {[%clk 0:02:53]}  Qa8 {[%clk 0:02:07]} 18. Nc7 {[%clk 0:02:52]}  Rxc7 {[%clk 0:02:08]} 19. Bxc7 {[%clk 0:02:52]}  Rd7 {[%clk 0:02:08]} 20. Be5 {[%clk 0:02:52]}  Nfe4 {[%clk 0:02:06]} 21. Nd4 {[%clk 0:02:45]}  a5 {[%clk 0:02:04]} 22. Nf5 {[%clk 0:02:45]}  Bf8 {[%clk 0:02:00]} 23. Bxe4 {[%clk 0:02:44]}  Nxe4 {[%clk 0:02:01]} 24. Qxe4 {[%clk 0:02:44]}  dxe4 {[%clk 0:01:55]} 25. Rxd7 {[%clk 0:02:44]}  e3 {[%clk 0:01:50]} 26. Nxe3 {[%clk 0:02:38]}  Ba6 {[%clk 0:01:50]} 27. Rcd1 {[%clk 0:02:30]}  Qe8 {[%clk 0:01:42]} 28. Bf4 {[%clk 0:02:11]}  Be7 {[%clk 0:01:27]} 29. Nd5 {[%clk 0:01:48]}  Bf8 {[%clk 0:01:27]} 30. Nc7 {[%clk 0:01:43]}  Qxe2 {[%clk 0:01:25]} 31. Nxa6 {[%clk 0:01:44]}  Qxa6 {[%clk 0:01:25]} 32. Rd8 {[%clk 0:01:44]}  Qe2 {[%clk 0:01:20]} 33. Rc1 {[%clk 0:01:26]}  Qe7 {[%clk 0:01:17]} 34. Rb8 {[%clk 0:00:50]}  g5 {[%clk 0:01:15]} 35. Be3 {[%clk 0:00:48]}  Kg7 {[%clk 0:01:09]} 36. Bd4+ {[%clk 0:00:49]}  Kg6 {[%clk 0:01:06]} 37. Rxb6+ {[%clk 0:00:49]}  Kh5 {[%clk 0:01:07]} 38. h3 {[%clk 0:00:27]}  Qe4 {[%clk 0:01:07]} 39. Be3 {[%clk 0:00:24]}  f5 {[%clk 0:00:59]} 40. Rb5 {[%clk 0:00:19]}  Bb4 {[%clk 0:00:54]} 41. Rxf5 {[%clk 0:00:17]}  Be7 {[%clk 0:00:50]} 42. Rxa5 {[%clk 0:00:12]}  Qe6 {[%clk 0:00:50]} 43. Kh2 {[%clk 0:00:09]}  Bd6 {[%clk 0:00:47]} 44. Rd1 {[%clk 0:00:06]}  h6 {[%clk 0:00:45]} 45. Rad5 {[%clk 0:00:07]}  Be5 {[%clk 0:00:44]} 46. R5d3 {[%clk 0:00:07]}  Qf6 {[%clk 0:00:43]} 47. Kg2 {[%clk 0:00:07]}  Qc6+ {[%clk 0:00:42]} 48. Rd5 {[%clk 0:00:07]}  Bc7 {[%clk 0:00:41]} 49. b4 {[%clk 0:00:08]}  Qc4 {[%clk 0:00:40]} 50. b5 {[%clk 0:00:08]}  Qe4+ {[%clk 0:00:37]} 51. Kh2 {[%clk 0:00:08]}  Qf3 {[%clk 0:00:37]} 52. R1d2 {[%clk 0:00:05]}  Kg6 {[%clk 0:00:32]} 53. b6 {[%clk 0:00:05]}  Bb8 {[%clk 0:00:32]} 54. b7 {[%clk 0:00:05]}  h5 {[%clk 0:00:32]} 55. Rd6+ {[%clk 0:00:05]}  Kf7 {[%clk 0:00:29]} 56. Rd7+ {[%clk 0:00:05]}  Ke6 {[%clk 0:00:30]} 57. Rd8 {[%clk 0:00:04]}  Bc7 {[%clk 0:00:21]} 58. b8=Q {[%clk 0:00:04]}  Bxb8 {[%clk 0:00:21]} 59. Rxb8 {[%clk 0:00:05]}  h4 {[%clk 0:00:21]} 60. Rb6+ {[%clk 0:00:05]}  Ke5 {[%clk 0:00:19]} 61. Rb5+ {[%clk 0:00:05]}  Ke6 {[%clk 0:00:18]} 62. Rb6+ {[%clk 0:00:05]}  Ke5 {[%clk 0:00:19]} 63. Rb5+ {[%clk 0:00:06]}  Ke6 {[%clk 0:00:19]} 64. g4 {[%clk 0:00:06]}  Qe4 {[%clk 0:00:16]} 65. Rxg5 {[%clk 0:00:07]}  Kf6 {[%clk 0:00:15]} 66. Rf5+ {[%clk 0:00:07]}  Kg6 {[%clk 0:00:16]} 67. Rd6+ {[%clk 0:00:07]}  Kh7 {[%clk 0:00:16]} 68. Rd7+ {[%clk 0:00:07]}  Kg6 {[%clk 0:00:16]} 69. Rd6+ {[%clk 0:00:08]}  Kh7 {[%clk 0:00:16]} 70. Rd2 {[%clk 0:00:07]}  Qe7 {[%clk 0:00:15]} 71. a4 {[%clk 0:00:06]}  Qc7+ {[%clk 0:00:15]} 72. Kg1 {[%clk 0:00:06]}  Qc1+ {[%clk 0:00:16]} 73. Kg2 {[%clk 0:00:06]}  Qc5 {[%clk 0:00:16]} 74. Rxc5 {[%clk 0:00:05]}  Kg6 {[%clk 0:00:12]} 75. Rg5+ {[%clk 0:00:05]}  Kf7 {[%clk 0:00:13]} 76. Rf5+ {[%clk 0:00:06]}  Ke6 {[%clk 0:00:13]} 77. Kf3 {[%clk 0:00:05]}  Ke7 {[%clk 0:00:13]} 78. Ke4 {[%clk 0:00:06]}  Ke6 {[%clk 0:00:14]} 79. g5 {[%clk 0:00:06]}  Ke7 {[%clk 0:00:15]} 80. g6 {[%clk 0:00:07]}  Ke6 {[%clk 0:00:16]} 81. g7 {[%clk 0:00:08]}  Ke7 {[%clk 0:00:16]} 82. Bg5+ {[%clk 0:00:08]}  Ke8 {[%clk 0:00:16]} 83. g8=Q# {[%clk 0:00:08]} 1-0


[Site "https://www.chess.com"]

[Event "Titled Tuesday Blitz March 28 Late 2023"]
[White "Srinath, Rao S.V."]
[Black "Tari, Aryan"]
[WhiteFideId "5028876"]
[BlackFideId "1510045"]
[WhiteElo "2196"]
[BlackElo "2583"]
[Result "0-1"]
[Round "04"]
[TimeControl "180+2"]
[Date "2023.03.28"]
[WhiteClock "0:00:54"]
[BlackClock "0:00:41"]

1. e4 {[%clk 0:03:00]}  e5 {[%clk 0:02:48]} 2. Nf3 {[%clk 0:02:59]}  Nc6 {[%clk 0:02:49]} 3. Bc4 {[%clk 0:02:58]}  Bc5 {[%clk 0:02:48]} 4. c3 {[%clk 0:02:57]}  Nf6 {[%clk 0:02:46]} 5. d3 {[%clk 0:02:58]}  a6 {[%clk 0:02:45]} 6. a4 {[%clk 0:02:51]}  Ba7 {[%clk 0:02:45]} 7. O-O {[%clk 0:02:50]}  d6 {[%clk 0:02:46]} 8. h3 {[%clk 0:02:44]}  h6 {[%clk 0:02:43]} 9. Be3 {[%clk 0:02:43]}  Bxe3 {[%clk 0:02:41]} 10. fxe3 {[%clk 0:02:43]}  O-O {[%clk 0:02:38]} 11. Nbd2 {[%clk 0:02:41]}  Re8 {[%clk 0:02:19]} 12. Qe1 {[%clk 0:02:40]}  Be6 {[%clk 0:02:19]} 13. Nh4 {[%clk 0:02:33]}  d5 {[%clk 0:02:04]} 14. exd5 {[%clk 0:02:05]}  Nxd5 {[%clk 0:02:05]} 15. Nf5 {[%clk 0:02:04]}  Qd7 {[%clk 0:01:41]} 16. g4 {[%clk 0:01:37]}  Nde7 {[%clk 0:01:35]} 17. Ne4 {[%clk 0:01:26]}  Bxc4 {[%clk 0:01:08]} 18. Nxh6+ {[%clk 0:01:20]}  Kf8 {[%clk 0:01:08]} 19. Nxf7 {[%clk 0:01:09]}  Bxf7 {[%clk 0:01:07]} 20. Ng5 {[%clk 0:01:09]}  Kg8 {[%clk 0:00:52]} 21. Rxf7 {[%clk 0:01:03]}  Qxd3 {[%clk 0:00:51]} 22. Qf2 {[%clk 0:01:02]}  Qg6 {[%clk 0:00:46]} 23. h4 {[%clk 0:00:57]}  Rf8 {[%clk 0:00:45]} 24. Rf1 {[%clk 0:00:55]}  Rxf7 {[%clk 0:00:45]} 25. Qxf7+ {[%clk 0:00:56]}  Qxf7 {[%clk 0:00:45]} 26. Nxf7 {[%clk 0:00:54]}  Rf8 {[%clk 0:00:41]} 0-1


[Site "https://www.chess.com"]

[Event "Titled Tuesday Blitz March 28 Late 2023"]
[White "Sourath Biswas"]
[Black "Bachmann, Axel"]
[WhiteFideId "35091484"]
[BlackFideId "3700488"]
[WhiteElo "2164"]
[BlackElo "2605"]
[Result "1-0"]
[Round "04"]
[TimeControl "180+2"]
[Date "2023.03.28"]
[WhiteClock "0:00:05"]
[BlackClock "0:00:08"]

1. d4 {[%clk 0:03:00]}  Nf6 {[%clk 0:02:56]} 2. Nf3 {[%clk 0:03:01]}  e6 {[%clk 0:02:57]} 3. Bf4 {[%clk 0:03:00]}  b5 {[%clk 0:02:53]} 4. e3 {[%clk 0:02:58]}  a6 {[%clk 0:02:49]} 5. a4 {[%clk 0:02:52]}  b4 {[%clk 0:02:48]} 6. c4 {[%clk 0:02:46]}  Bb7 {[%clk 0:02:43]} 7. Nbd2 {[%clk 0:02:43]}  c5 {[%clk 0:02:41]} 8. Nb3 {[%clk 0:02:35]}  cxd4 {[%clk 0:02:37]} 9. exd4 {[%clk 0:02:34]}  Be7 {[%clk 0:02:35]} 10. Bd3 {[%clk 0:02:34]}  O-O {[%clk 0:02:31]} 11. O-O {[%clk 0:02:35]}  Nc6 {[%clk 0:02:04]} 12. Qe2 {[%clk 0:02:34]}  Na5 {[%clk 0:02:03]} 13. Nfd2 {[%clk 0:02:32]}  d6 {[%clk 0:01:58]} 14. Nxa5 {[%clk 0:02:26]}  Qxa5 {[%clk 0:01:59]} 15. Nb3 {[%clk 0:02:27]}  Qc7 {[%clk 0:01:54]} 16. a5 {[%clk 0:02:22]}  Rab8 {[%clk 0:01:54]} 17. Rfc1 {[%clk 0:02:16]}  Rfc8 {[%clk 0:01:54]} 18. c5 {[%clk 0:01:12]}  Qc6 {[%clk 0:01:53]} 19. f3 {[%clk 0:01:06]}  Nh5 {[%clk 0:01:46]} 20. Be3 {[%clk 0:00:34]}  g6 {[%clk 0:01:32]} 21. Be4 {[%clk 0:00:30]}  Qd7 {[%clk 0:01:27]} 22. cxd6 {[%clk 0:00:20]}  Rxc1+ {[%clk 0:01:21]} 23. Rxc1 {[%clk 0:00:20]}  Qxd6 {[%clk 0:01:16]} 24. Bxb7 {[%clk 0:00:19]}  Rxb7 {[%clk 0:01:17]} 25. Nc5 {[%clk 0:00:19]}  Rb5 {[%clk 0:01:14]} 26. Ne4 {[%clk 0:00:18]}  Qd7 {[%clk 0:01:06]} 27. Qc4 {[%clk 0:00:16]}  Rxa5 {[%clk 0:01:03]} 28. Bh6 {[%clk 0:00:08]}  Rd5 {[%clk 0:00:58]} 29. Qc8+ {[%clk 0:00:08]}  Qxc8 {[%clk 0:00:56]} 30. Rxc8+ {[%clk 0:00:09]}  Rd8 {[%clk 0:00:56]} 31. Rc6 {[%clk 0:00:09]}  a5 {[%clk 0:00:51]} 32. Ra6 {[%clk 0:00:09]}  f5 {[%clk 0:00:44]} 33. Nc5 {[%clk 0:00:07]}  e5 {[%clk 0:00:35]} 34. Rxa5 {[%clk 0:00:06]}  Rxd4 {[%clk 0:00:29]} 35. Ne6 {[%clk 0:00:05]}  Rd1+ {[%clk 0:00:29]} 36. Kf2 {[%clk 0:00:05]}  Kf7 {[%clk 0:00:29]} 37. Rxe5 {[%clk 0:00:05]}  Rb1 {[%clk 0:00:16]} 38. Re2 {[%clk 0:00:05]}  Bd6 {[%clk 0:00:08]} 39. Ng5+ {[%clk 0:00:06]}  Kf6 {[%clk 0:00:08]} 40. Re6# {[%clk 0:00:05]} 1-0


[Site "https://www.chess.com"]